[Event "*** SCC Grand Prix: Titled Tuesday Blitz"]
[Site "Chess.com"]
[Date "2020.08.11"]
[Round "4"]
[White "IMAghasiyevKamal"]
[Black "icychess54"]
[Result "1-0"]
[WhiteElo "2429"]
[BlackElo "2228"]
[TimeControl "180+1"]
[EndTime "10:39:47 PDT"]
[Termination "IMAghasiyevKamal won on time"]

1. e4 {[%clk 0:03:00.9]} 1... c5 {[%clk 0:02:59.6]} 2. Nf3 {[%clk 0:02:59.4]}
2... d6 {[%clk 0:03:00.1]} 3. d4 {[%clk 0:02:58.3]} 3... cxd4 {[%clk 0:03:01]}
4. Nxd4 {[%clk 0:02:58.9]} 4... Nf6 {[%clk 0:03:01.4]} 5. Nc3 {[%clk 0:02:59.4]}
5... Nc6 {[%clk 0:03:01.7]} 6. Bg5 {[%clk 0:02:57.4]} 6... e6 {[%clk 0:03:01.2]}
7. Qd2 {[%clk 0:02:57.3]} 7... h6 {[%clk 0:03:00.6]} 8. Be3 {[%clk 0:02:52.9]}
8... Ng4 {[%clk 0:02:59.4]} 9. Nxc6 {[%clk 0:02:50.8]} 9... bxc6 {[%clk
0:02:58.9]} 10. Bf4 {[%clk 0:02:51]} 10... e5 {[%clk 0:02:57.9]} 11. Bg3 {[%clk
0:02:50.5]} 11... Be7 {[%clk 0:02:56.9]} 12. Be2 {[%clk 0:02:48.6]} 12... O-O
{[%clk 0:02:50.7]} 13. O-O {[%clk 0:02:45.2]} 13... h5 {[%clk 0:02:29.7]} 14. h3
{[%clk 0:02:09.9]} 14... h4 {[%clk 0:01:57.1]} 15. Bxh4 {[%clk 0:02:06.5]} 15...
Bxh4 {[%clk 0:01:48.1]} 16. Bxg4 {[%clk 0:02:02]} 16... Bxg4 {[%clk 0:01:41.6]}
17. hxg4 {[%clk 0:02:01.8]} 17... Bg5 {[%clk 0:01:34.2]} 18. Qd3 {[%clk
0:01:57.3]} 18... Qd7 {[%clk 0:01:31.8]} 19. f3 {[%clk 0:01:35.5]} 19... Rfd8
{[%clk 0:01:20]} 20. Rad1 {[%clk 0:01:34.5]} 20... a5 {[%clk 0:01:16.1]} 21. g3
{[%clk 0:01:30.2]} 21... a4 {[%clk 0:01:04.1]} 22. Qc4 {[%clk 0:01:19.5]} 22...
Qb7 {[%clk 0:00:41.8]} 23. b3 {[%clk 0:01:05.8]} 23... axb3 {[%clk 0:00:40.9]}
24. axb3 {[%clk 0:01:06.2]} 24... Be3+ {[%clk 0:00:39]} 25. Kg2 {[%clk
0:01:04.1]} 25... Bd4 {[%clk 0:00:38.3]} 26. Na4 {[%clk 0:00:47.8]} 26... d5
{[%clk 0:00:35.6]} 27. Qd3 {[%clk 0:00:44.9]} 27... Rac8 {[%clk 0:00:20.5]} 28.
c3 {[%clk 0:00:34.3]} 28... Ba7 {[%clk 0:00:20.1]} 29. b4 {[%clk 0:00:32.3]}
29... d4 {[%clk 0:00:19.2]} 30. Qc4 {[%clk 0:00:28.1]} 30... dxc3 {[%clk
0:00:16.9]} 31. Nxc3 {[%clk 0:00:19.6]} 31... Bd4 {[%clk 0:00:16.7]} 32. Ne2
{[%clk 0:00:18.7]} 32... Rb8 {[%clk 0:00:09.8]} 33. Rb1 {[%clk 0:00:17.9]} 33...
Qb5 {[%clk 0:00:08.1]} 34. Rfc1 {[%clk 0:00:17.8]} 34... Qb6 {[%clk 0:00:05.9]}
35. Qxc6 {[%clk 0:00:16.8]} 35... Qxc6 {[%clk 0:00:04.4]} 36. Rxc6 {[%clk
0:00:17.7]} 36... Be3 {[%clk 0:00:04.4]} 37. Rc2 {[%clk 0:00:17.1]} 37... Rb5
{[%clk 0:00:03.4]} 38. Nc3 {[%clk 0:00:16]} 38... Rb6 {[%clk 0:00:02.1]} 39. Nd5
{[%clk 0:00:16.1]} 1-0

[Event "*** SCC Grand Prix: Titled Tuesday Blitz"]
[Site "Chess.com"]
[Date "2020.08.11"]
[Round "4"]
[White "Azoulas1"]
[Black "chess_rehab"]
[Result "0-1"]
[WhiteElo "2003"]
[BlackElo "2299"]
[TimeControl "180+1"]
[EndTime "10:39:47 PDT"]
[Termination "chess_rehab won by resignation"]

1. e4 {[%clk 0:03:00.9]} 1... c5 {[%clk 0:02:59.3]} 2. Nf3 {[%clk 0:03:00]} 2...
d6 {[%clk 0:02:57.9]} 3. d4 {[%clk 0:02:57.2]} 3... cxd4 {[%clk 0:02:57.6]} 4.
Nxd4 {[%clk 0:02:57.5]} 4... Nf6 {[%clk 0:02:57.2]} 5. Nc3 {[%clk 0:02:55.4]}
5... g6 {[%clk 0:02:53.9]} 6. Be3 {[%clk 0:02:51.8]} 6... Bg7 {[%clk 0:02:53.7]}
7. f3 {[%clk 0:02:49.5]} 7... Nc6 {[%clk 0:02:53]} 8. Qd2 {[%clk 0:02:46.2]}
8... O-O {[%clk 0:02:52.3]} 9. O-O-O {[%clk 0:02:45.5]} 9... d5 {[%clk 0:02:49]}
10. exd5 {[%clk 0:02:41.9]} 10... Nxd5 {[%clk 0:02:49.9]} 11. Nxc6 {[%clk
0:02:40.2]} 11... bxc6 {[%clk 0:02:49.2]} 12. Bd4 {[%clk 0:02:38.8]} 12... e5
{[%clk 0:02:48.8]} 13. Bc5 {[%clk 0:02:36.3]} 13... Be6 {[%clk 0:02:48.5]} 14.
g4 {[%clk 0:02:29.5]} 14... Re8 {[%clk 0:02:41.2]} 15. h4 {[%clk 0:02:22.2]}
15... Nxc3 {[%clk 0:02:28.2]} 16. Qxc3 {[%clk 0:02:20.9]} 16... Qc7 {[%clk
0:02:18.6]} 17. h5 {[%clk 0:02:07.5]} 17... e4 {[%clk 0:02:06.7]} 18. Bd4 {[%clk
0:02:04.2]} 18... Qf4+ {[%clk 0:01:54]} 19. Kb1 {[%clk 0:01:45.4]} 19... Bxd4
{[%clk 0:01:43.4]} 20. Qxd4 {[%clk 0:01:42.6]} 20... Rad8 {[%clk 0:01:22]} 21.
Qxd8 {[%clk 0:01:30.9]} 21... Rxd8 {[%clk 0:01:22.9]} 22. Rxd8+ {[%clk
0:01:29.3]} 22... Kg7 {[%clk 0:01:23.3]} 23. fxe4 {[%clk 0:01:21.6]} 23... Qxe4
{[%clk 0:01:18.9]} 24. h6+ {[%clk 0:01:15.7]} 24... Kf6 {[%clk 0:01:17.6]} 25.
Bg2 {[%clk 0:01:07.1]} 25... Qxg2 {[%clk 0:01:14.4]} 26. Rc1 {[%clk 0:01:05.1]}
26... Bxg4 {[%clk 0:01:08]} 27. Rh8 {[%clk 0:01:01.2]} 27... Bf5 {[%clk
0:00:46]} 28. Rxh7 {[%clk 0:00:58.4]} 28... g5 {[%clk 0:00:38.1]} 29. Rh8 {[%clk
0:00:55.8]} 29... Qh2 {[%clk 0:00:35.5]} 30. a4 {[%clk 0:00:49.8]} 30... g4
{[%clk 0:00:35.5]} 31. b3 {[%clk 0:00:46]} 31... g3 {[%clk 0:00:29.3]} 32. Rg8
{[%clk 0:00:44.8]} 32... Bg6 {[%clk 0:00:17.5]} 33. Rf1+ {[%clk 0:00:40.3]}
33... Ke7 {[%clk 0:00:17.4]} 34. Re1+ {[%clk 0:00:35.4]} 34... Kd7 {[%clk
0:00:17.6]} 35. Rd1+ {[%clk 0:00:33.5]} 35... Kc7 {[%clk 0:00:17.8]} 36. Rc1
{[%clk 0:00:29]} 36... g2 {[%clk 0:00:17.8]} 37. h7 {[%clk 0:00:20.3]} 37...
Qxh7 {[%clk 0:00:18.7]} 38. Ra8 {[%clk 0:00:18.2]} 38... Bxc2+ {[%clk
0:00:17.5]} 39. Kb2 {[%clk 0:00:15]} 39... Qd3 {[%clk 0:00:17.2]} 40. Rxa7+
{[%clk 0:00:13.5]} 40... Kb6 {[%clk 0:00:16.3]} 41. Rxc2 {[%clk 0:00:10.9]}
41... Qxc2+ {[%clk 0:00:13.6]} 42. Kxc2 {[%clk 0:00:09.5]} 42... Kxa7 {[%clk
0:00:14.5]} 43. a5 {[%clk 0:00:07.3]} 43... g1=Q {[%clk 0:00:15.4]} 44. Kc3
{[%clk 0:00:06.7]} 44... Qg4 {[%clk 0:00:15.5]} 0-1

[Event "*** SCC Grand Prix: Titled Tuesday Blitz"]
[Site "Chess.com"]
[Date "2020.08.11"]
[Round "4"]
[White "Duong57"]
[Black "BlackWidow515"]
[Result "1-0"]
[WhiteElo "2334"]
[BlackElo "2100"]
[TimeControl "180+1"]
[EndTime "10:39:49 PDT"]
[Termination "Duong57 won on time"]

1. d4 {[%clk 0:03:00.9]} 1... d5 {[%clk 0:03:00.1]} 2. c4 {[%clk 0:03:00.9]}
2... e6 {[%clk 0:02:59.6]} 3. Nc3 {[%clk 0:03:00.2]} 3... Nf6 {[%clk 0:02:59.8]}
4. cxd5 {[%clk 0:03:00.1]} 4... exd5 {[%clk 0:02:59.4]} 5. Bg5 {[%clk
0:03:00.5]} 5... Be7 {[%clk 0:02:58.8]} 6. Qc2 {[%clk 0:03:00.4]} 6... Nbd7
{[%clk 0:02:44.4]} 7. e3 {[%clk 0:02:58.6]} 7... Nf8 {[%clk 0:02:43.1]} 8. Bd3
{[%clk 0:02:51.4]} 8... Ne6 {[%clk 0:02:33.8]} 9. Bh4 {[%clk 0:02:46.2]} 9... h6
{[%clk 0:02:24.5]} 10. Nge2 {[%clk 0:02:43.6]} 10... b6 {[%clk 0:02:23.5]} 11.
Bb5+ {[%clk 0:02:06.5]} 11... Bd7 {[%clk 0:02:19.8]} 12. Bxf6 {[%clk 0:02:05.8]}
12... Bxf6 {[%clk 0:02:03.4]} 13. Qa4 {[%clk 0:02:05.5]} 13... c5 {[%clk
0:01:36.2]} 14. Nxd5 {[%clk 0:01:51.3]} 14... cxd4 {[%clk 0:01:32.1]} 15. Nxf6+
{[%clk 0:01:51]} 15... gxf6 {[%clk 0:01:31.3]} 16. Rd1 {[%clk 0:01:38.9]} 16...
Rg8 {[%clk 0:00:27.4]} 17. Nxd4 {[%clk 0:01:26]} 17... a6 {[%clk 0:00:26.5]} 18.
Nxe6 {[%clk 0:01:00.3]} 18... axb5 {[%clk 0:00:12.8]} 19. Nc7+ {[%clk
0:00:26.3]} 19... Qxc7 {[%clk 0:00:12.6]} 20. Qxa8+ {[%clk 0:00:25.6]} 20... Qc8
{[%clk 0:00:12.7]} 21. Qxc8+ {[%clk 0:00:20.3]} 21... Bxc8 {[%clk 0:00:13]} 22.
O-O {[%clk 0:00:20.9]} 22... Be6 {[%clk 0:00:10.9]} 23. b3 {[%clk 0:00:20.4]}
23... Ke7 {[%clk 0:00:10.6]} 24. Rd2 {[%clk 0:00:19.1]} 24... Ra8 {[%clk
0:00:11]} 25. f3 {[%clk 0:00:19.2]} 25... b4 {[%clk 0:00:10]} 26. Rc1 {[%clk
0:00:19.2]} 26... Ra7 {[%clk 0:00:09.4]} 27. e4 {[%clk 0:00:18]} 27... Rb7
{[%clk 0:00:07.7]} 28. Kf2 {[%clk 0:00:18.2]} 28... Ra7 {[%clk 0:00:08.3]} 29.
Ke3 {[%clk 0:00:18.2]} 29... f5 {[%clk 0:00:08.7]} 30. e5 {[%clk 0:00:17.4]}
30... h5 {[%clk 0:00:08]} 31. f4 {[%clk 0:00:17.6]} 31... Ra8 {[%clk 0:00:07.1]}
32. Rcc2 {[%clk 0:00:17.8]} 32... Ra7 {[%clk 0:00:06.3]} 33. Rd4 {[%clk
0:00:17.8]} 33... Ra5 {[%clk 0:00:03.6]} 34. Rxb4 {[%clk 0:00:17.6]} 34... Ra6
{[%clk 0:00:04.3]} 35. a4 {[%clk 0:00:16.7]} 35... Bd5 {[%clk 0:00:04]} 36. Rd2
{[%clk 0:00:16.1]} 36... Be4 {[%clk 0:00:02.8]} 37. g3 {[%clk 0:00:16.4]} 1-0

[Event "*** SCC Grand Prix: Titled Tuesday Blitz"]
[Site "Chess.com"]
[Date "2020.08.11"]
[Round "4"]
[White "VerdeNotte"]
[Black "abykhovsky"]
[Result "0-1"]
[WhiteElo "2873"]
[BlackElo "2748"]
[TimeControl "180+1"]
[EndTime "10:39:50 PDT"]
[Termination "abykhovsky won by resignation"]

1. e4 {[%clk 0:03:00.9]} 1... c5 {[%clk 0:02:59]} 2. Nc3 {[%clk 0:03:01]} 2...
Nc6 {[%clk 0:02:52.5]} 3. Bb5 {[%clk 0:03:00.8]} 3... Nd4 {[%clk 0:02:52.3]} 4.
Nf3 {[%clk 0:03:01.3]} 4... Nxb5 {[%clk 0:02:49.2]} 5. Nxb5 {[%clk 0:03:02.2]}
5... d6 {[%clk 0:02:49.7]} 6. d4 {[%clk 0:03:01.6]} 6... cxd4 {[%clk 0:02:50.2]}
7. Qxd4 {[%clk 0:03:01.5]} 7... Bd7 {[%clk 0:02:49.6]} 8. Nc3 {[%clk 0:02:57.2]}
8... e6 {[%clk 0:02:47.4]} 9. O-O {[%clk 0:02:40.4]} 9... Nf6 {[%clk 0:02:47.4]}
10. Rd1 {[%clk 0:02:34.3]} 10... Bc6 {[%clk 0:02:44.9]} 11. Bf4 {[%clk
0:02:16.1]} 11... e5 {[%clk 0:02:30.7]} 12. Nxe5 {[%clk 0:02:03.3]} 12... dxe5
{[%clk 0:02:30.7]} 13. Qxe5+ {[%clk 0:02:04]} 13... Qe7 {[%clk 0:02:30.6]} 14.
Qd4 {[%clk 0:01:52]} 14... Qc5 {[%clk 0:02:28.4]} 15. Qd3 {[%clk 0:01:40.7]}
15... Be7 {[%clk 0:02:28]} 16. e5 {[%clk 0:01:39.4]} 16... Nd7 {[%clk
0:02:26.1]} 17. Ne4 {[%clk 0:01:36.9]} 17... Qb4 {[%clk 0:02:24.6]} 18. c4
{[%clk 0:01:17.9]} 18... O-O {[%clk 0:01:59.3]} 19. a3 {[%clk 0:01:15.3]} 19...
Qxb2 {[%clk 0:01:18.8]} 20. Rdb1 {[%clk 0:01:15.2]} 20... Bxe4 {[%clk
0:01:18.9]} 21. Qxe4 {[%clk 0:01:15.4]} 21... Nc5 {[%clk 0:01:19.4]} 22. Rxb2
{[%clk 0:00:59.6]} 22... Nxe4 {[%clk 0:01:18.9]} 23. Rxb7 {[%clk 0:01:00]} 23...
Bc5 {[%clk 0:01:18.5]} 24. Kf1 {[%clk 0:00:43.4]} 24... Bxf2 {[%clk 0:01:11]}
25. Rd1 {[%clk 0:00:35.8]} 25... Bb6 {[%clk 0:01:09]} 26. Rbd7 {[%clk
0:00:27.3]} 26... h6 {[%clk 0:01:04.8]} 27. Rc1 {[%clk 0:00:25.4]} 27... Rfd8
{[%clk 0:00:57.1]} 28. Rxd8+ {[%clk 0:00:24.7]} 28... Rxd8 {[%clk 0:00:58]} 29.
Ke2 {[%clk 0:00:22.7]} 29... g5 {[%clk 0:00:50.3]} 30. Kf3 {[%clk 0:00:23]}
30... Nc5 {[%clk 0:00:48.6]} 31. Be3 {[%clk 0:00:21.8]} 31... Rd3 {[%clk
0:00:48.3]} 32. Ke2 {[%clk 0:00:21.3]} 32... Rxe3+ {[%clk 0:00:48.2]} 33. Kxe3
{[%clk 0:00:20.1]} 33... Nb3+ {[%clk 0:00:48.6]} 34. c5 {[%clk 0:00:21]} 34...
Bxc5+ {[%clk 0:00:47.8]} 35. Rxc5 {[%clk 0:00:21.3]} 35... Nxc5 {[%clk
0:00:48.1]} 36. Kd4 {[%clk 0:00:21.9]} 36... Nd7 {[%clk 0:00:46.2]} 37. Kd5
{[%clk 0:00:21.1]} 37... Kf8 {[%clk 0:00:46.5]} 38. e6 {[%clk 0:00:18.9]} 38...
Nf6+ {[%clk 0:00:37.9]} 39. Kd6 {[%clk 0:00:16]} 39... fxe6 {[%clk 0:00:34]} 40.
Kxe6 {[%clk 0:00:15.7]} 40... Ng4 {[%clk 0:00:34.3]} 41. h3 {[%clk 0:00:12.8]}
41... Ne3 {[%clk 0:00:33.6]} 42. g3 {[%clk 0:00:11.6]} 42... Nc4 {[%clk
0:00:29.5]} 43. a4 {[%clk 0:00:11.2]} 43... a5 {[%clk 0:00:29.9]} 44. Kd5 {[%clk
0:00:06.9]} 44... Nb6+ {[%clk 0:00:30.1]} 45. Kc5 {[%clk 0:00:07]} 45... Nxa4+
{[%clk 0:00:31]} 46. Kb5 {[%clk 0:00:07.8]} 46... Nc3+ {[%clk 0:00:30.3]} 47.
Kxa5 {[%clk 0:00:08.2]} 47... Ne4 {[%clk 0:00:30.9]} 48. Kb4 {[%clk 0:00:03.5]}
48... Nxg3 {[%clk 0:00:30.8]} 49. Kc5 {[%clk 0:00:04.2]} 49... Kf7 {[%clk
0:00:30.5]} 50. Kd4 {[%clk 0:00:04.6]} 50... Kf6 {[%clk 0:00:30.8]} 51. Ke3
{[%clk 0:00:05.2]} 51... Kf5 {[%clk 0:00:30.4]} 52. Kf3 {[%clk 0:00:06.1]} 52...
Ne4 {[%clk 0:00:30.7]} 53. Ke3 {[%clk 0:00:05.9]} 0-1

[Event "*** SCC Grand Prix: Titled Tuesday Blitz"]
[Site "Chess.com"]
[Date "2020.08.11"]
[Round "4"]
[White "talman67"]
[Black "bgfbfbgfbgfgf"]
[Result "0-1"]
[WhiteElo "2485"]
[BlackElo "2680"]
[TimeControl "180+1"]
[EndTime "10:39:50 PDT"]
[Termination "bgfbfbgfbgfgf won by resignation"]

1. e4 {[%clk 0:03:00.9]} 1... e5 {[%clk 0:02:57.5]} 2. Nf3 {[%clk 0:03:00.7]}
2... Nc6 {[%clk 0:02:58.2]} 3. Bb5 {[%clk 0:03:01.2]} 3... a6 {[%clk 0:02:58.3]}
4. Ba4 {[%clk 0:03:01.8]} 4... Nf6 {[%clk 0:02:57.8]} 5. O-O {[%clk 0:03:02.3]}
5... Be7 {[%clk 0:02:58.1]} 6. Re1 {[%clk 0:03:02.7]} 6... b5 {[%clk 0:02:58.5]}
7. Bb3 {[%clk 0:03:03.1]} 7... d6 {[%clk 0:02:59.1]} 8. c3 {[%clk 0:03:03.3]}
8... O-O {[%clk 0:02:59.5]} 9. h3 {[%clk 0:03:03.2]} 9... Re8 {[%clk 0:02:59.8]}
10. d4 {[%clk 0:02:50.4]} 10... Bb7 {[%clk 0:02:57.6]} 11. Nbd2 {[%clk
0:02:49.4]} 11... Bf8 {[%clk 0:02:57.7]} 12. a4 {[%clk 0:02:46.3]} 12... h6
{[%clk 0:02:57]} 13. Bc2 {[%clk 0:02:43.9]} 13... exd4 {[%clk 0:02:57]} 14. cxd4
{[%clk 0:02:44.8]} 14... Nb4 {[%clk 0:02:57.6]} 15. Bb1 {[%clk 0:02:45.1]} 15...
c5 {[%clk 0:02:58.3]} 16. d5 {[%clk 0:02:45.2]} 16... Nd7 {[%clk 0:02:54.6]} 17.
Nf1 {[%clk 0:02:18.5]} 17... f5 {[%clk 0:02:49]} 18. exf5 {[%clk 0:02:02.8]}
18... Rxe1 {[%clk 0:02:46.8]} 19. Qxe1 {[%clk 0:02:03.7]} 19... Bxd5 {[%clk
0:02:44.2]} 20. N1h2 {[%clk 0:01:56.3]} 20... Qe8 {[%clk 0:02:38.3]} 21. Be3
{[%clk 0:01:54.8]} 21... Nf6 {[%clk 0:02:34.8]} 22. Qd1 {[%clk 0:01:45.7]} 22...
Qf7 {[%clk 0:02:24.4]} 23. axb5 {[%clk 0:01:42.7]} 23... axb5 {[%clk 0:02:22]}
24. Rxa8 {[%clk 0:01:42.5]} 24... Bxa8 {[%clk 0:02:22.9]} 25. Ng4 {[%clk
0:01:40.9]} 25... Be7 {[%clk 0:01:36.7]} 26. Bd2 {[%clk 0:01:22.1]} 26... Nbd5
{[%clk 0:01:18.7]} 27. Nxf6+ {[%clk 0:01:21]} 27... Bxf6 {[%clk 0:01:07.3]} 28.
Be4 {[%clk 0:01:15]} 28... Bxb2 {[%clk 0:00:54.8]} 29. Qb3 {[%clk 0:01:14.1]}
29... Nc7 {[%clk 0:00:53.3]} 30. Qc2 {[%clk 0:00:33.8]} 30... Qc4 {[%clk
0:00:33.2]} 31. Qxb2 {[%clk 0:00:30.1]} 31... Bxe4 {[%clk 0:00:31.8]} 32. f6
{[%clk 0:00:28.4]} 32... Bxf3 {[%clk 0:00:27.7]} 33. gxf3 {[%clk 0:00:29.3]}
33... Qd4 {[%clk 0:00:25.4]} 34. Bc3 {[%clk 0:00:28.2]} 34... Qd1+ {[%clk
0:00:23.9]} 35. Kg2 {[%clk 0:00:28.2]} 35... Nd5 {[%clk 0:00:21]} 36. Bd2 {[%clk
0:00:25.5]} 36... Nxf6 {[%clk 0:00:20]} 37. Bxh6 {[%clk 0:00:25.5]} 37... b4
{[%clk 0:00:14.7]} 38. Bg5 {[%clk 0:00:14.2]} 38... Qd4 {[%clk 0:00:14.9]} 39.
Qa2+ {[%clk 0:00:13.6]} 39... Qd5 {[%clk 0:00:14.6]} 0-1

[Event "*** SCC Grand Prix: Titled Tuesday Blitz"]
[Site "Chess.com"]
[Date "2020.08.11"]
[Round "4"]
[White "kingofthenil"]
[Black "chessfrendz"]
[Result "1-0"]
[WhiteElo "2453"]
[BlackElo "2259"]
[TimeControl "180+1"]
[EndTime "10:39:50 PDT"]
[Termination "kingofthenil won by resignation"]

1. e4 {[%clk 0:03:00.9]} 1... e5 {[%clk 0:02:57.9]} 2. Nf3 {[%clk 0:02:52.8]}
2... Nc6 {[%clk 0:02:58.1]} 3. Bc4 {[%clk 0:02:40]} 3... Bc5 {[%clk 0:02:57]} 4.
c3 {[%clk 0:02:29.3]} 4... Nf6 {[%clk 0:02:53.1]} 5. d3 {[%clk 0:02:29.7]} 5...
O-O {[%clk 0:02:45.3]} 6. h3 {[%clk 0:02:24.3]} 6... d6 {[%clk 0:02:37.6]} 7.
Bb3 {[%clk 0:02:18.8]} 7... Ne7 {[%clk 0:02:36]} 8. O-O {[%clk 0:02:14.1]} 8...
Ng6 {[%clk 0:02:34.6]} 9. d4 {[%clk 0:02:13.3]} 9... Bb6 {[%clk 0:02:34]} 10.
Re1 {[%clk 0:02:12.6]} 10... Qe7 {[%clk 0:02:25.1]} 11. Nbd2 {[%clk 0:02:02.6]}
11... c6 {[%clk 0:02:20.4]} 12. Nc4 {[%clk 0:01:58.2]} 12... Bc7 {[%clk
0:02:19.6]} 13. Ne3 {[%clk 0:01:58]} 13... Nxe4 {[%clk 0:02:15.5]} 14. Nc4
{[%clk 0:01:31.4]} 14... d5 {[%clk 0:02:03.2]} 15. Ncxe5 {[%clk 0:00:49.5]}
15... Nxe5 {[%clk 0:01:59.3]} 16. Nxe5 {[%clk 0:00:43.6]} 16... Qh4 {[%clk
0:01:47.7]} 17. Qf3 {[%clk 0:00:36.4]} 17... Be6 {[%clk 0:01:16.6]} 18. Bf4
{[%clk 0:00:34.4]} 18... Rae8 {[%clk 0:00:53.7]} 19. Nd3 {[%clk 0:00:20.8]}
19... Bxf4 {[%clk 0:00:47]} 20. Qxf4 {[%clk 0:00:21.6]} 20... Qd8 {[%clk
0:00:34.1]} 21. Bc2 {[%clk 0:00:20]} 21... f6 {[%clk 0:00:32.7]} 22. f3 {[%clk
0:00:19.5]} 22... Ng5 {[%clk 0:00:31.3]} 23. h4 {[%clk 0:00:17]} 23... Nf7
{[%clk 0:00:28.9]} 24. Re2 {[%clk 0:00:17.4]} 24... Bc8 {[%clk 0:00:27.9]} 25.
Rae1 {[%clk 0:00:16.9]} 25... Rxe2 {[%clk 0:00:28.4]} 26. Rxe2 {[%clk
0:00:17.8]} 26... Re8 {[%clk 0:00:26]} 27. Rxe8+ {[%clk 0:00:18.2]} 27... Qxe8
{[%clk 0:00:26.1]} 28. Kf2 {[%clk 0:00:19.1]} 28... Qd8 {[%clk 0:00:23.3]} 29.
Nc5 {[%clk 0:00:16.7]} 29... Qd6 {[%clk 0:00:24.2]} 30. Qe3 {[%clk 0:00:15.6]}
30... Kf8 {[%clk 0:00:22.6]} 31. Bxh7 {[%clk 0:00:14.5]} 31... b6 {[%clk
0:00:21.9]} 32. Nd3 {[%clk 0:00:13.4]} 32... Qe5 {[%clk 0:00:21.5]} 33. dxe5
{[%clk 0:00:12.8]} 33... fxe5 {[%clk 0:00:20.4]} 34. Nxe5 {[%clk 0:00:13.7]}
34... Nxe5 {[%clk 0:00:19.3]} 35. Qxe5 {[%clk 0:00:14.6]} 35... Kf7 {[%clk
0:00:19.2]} 36. Bf5 {[%clk 0:00:14.5]} 36... Bxf5 {[%clk 0:00:17.7]} 37. Qxf5+
{[%clk 0:00:15.4]} 37... Ke7 {[%clk 0:00:16.8]} 38. h5 {[%clk 0:00:16.3]} 1-0

[Event "*** SCC Grand Prix: Titled Tuesday Blitz"]
[Site "Chess.com"]
[Date "2020.08.11"]
[Round "4"]
[White "OK97"]
[Black "VladimirBelous"]
[Result "0-1"]
[WhiteElo "2863"]
[BlackElo "2744"]
[TimeControl "180+1"]
[EndTime "10:39:51 PDT"]
[Termination "VladimirBelous won on time"]

1. Nf3 {[%clk 0:03:00.9]} 1... c5 {[%clk 0:02:56.9]} 2. c4 {[%clk 0:03:00.8]}
2... g6 {[%clk 0:02:56.2]} 3. d4 {[%clk 0:03:00.8]} 3... Bg7 {[%clk 0:02:56.4]}
4. e4 {[%clk 0:03:00.5]} 4... Qa5+ {[%clk 0:02:52.4]} 5. Nc3 {[%clk 0:02:50.3]}
5... Nc6 {[%clk 0:02:46.7]} 6. d5 {[%clk 0:02:49.9]} 6... Nd4 {[%clk 0:02:46.8]}
7. Bd2 {[%clk 0:02:39.8]} 7... d6 {[%clk 0:02:39]} 8. Nxd4 {[%clk 0:02:32.2]}
8... cxd4 {[%clk 0:02:39.9]} 9. Nb5 {[%clk 0:02:24.8]} 9... Qd8 {[%clk
0:02:38.2]} 10. Bd3 {[%clk 0:02:17.1]} 10... a6 {[%clk 0:02:32.4]} 11. Na3
{[%clk 0:02:16.6]} 11... Nf6 {[%clk 0:02:33]} 12. O-O {[%clk 0:02:09.6]} 12...
O-O {[%clk 0:02:32.7]} 13. b4 {[%clk 0:02:00.4]} 13... Nd7 {[%clk 0:02:21.1]}
14. f4 {[%clk 0:01:59.1]} 14... a5 {[%clk 0:02:21.2]} 15. bxa5 {[%clk
0:01:51.4]} 15... Nc5 {[%clk 0:02:21.3]} 16. Bb4 {[%clk 0:01:47.7]} 16... f5
{[%clk 0:02:18]} 17. e5 {[%clk 0:01:39.9]} 17... Rxa5 {[%clk 0:02:03.8]} 18. Nb5
{[%clk 0:01:21.5]} 18... Ra6 {[%clk 0:01:53.9]} 19. Bxc5 {[%clk 0:01:11.6]}
19... dxc5 {[%clk 0:01:52.4]} 20. a4 {[%clk 0:01:12.2]} 20... Bd7 {[%clk
0:01:48.3]} 21. Qb3 {[%clk 0:01:06.7]} 21... b6 {[%clk 0:01:45.9]} 22. Rab1
{[%clk 0:00:53.7]} 22... Kh8 {[%clk 0:01:45.9]} 23. Kh1 {[%clk 0:00:49.1]} 23...
Ra5 {[%clk 0:01:22.6]} 24. Rfe1 {[%clk 0:00:44.8]} 24... e6 {[%clk 0:01:20.9]}
25. Nd6 {[%clk 0:00:35]} 25... Ra6 {[%clk 0:01:20.9]} 26. a5 {[%clk 0:00:33.1]}
26... bxa5 {[%clk 0:01:00.6]} 27. Qb7 {[%clk 0:00:33.1]} 27... Ra8 {[%clk
0:00:54.9]} 28. dxe6 {[%clk 0:00:14.5]} 28... Bxe6 {[%clk 0:00:53.4]} 29. Qc6
{[%clk 0:00:15]} 29... g5 {[%clk 0:00:29.9]} 30. Nb7 {[%clk 0:00:12.6]} 30...
Qc8 {[%clk 0:00:25.7]} 31. Qd6 {[%clk 0:00:10]} 31... gxf4 {[%clk 0:00:18.9]}
32. Nxc5 {[%clk 0:00:10.3]} 32... Re8 {[%clk 0:00:19.4]} 33. Nxe6 {[%clk
0:00:08.6]} 33... Rxe6 {[%clk 0:00:19.7]} 34. Qxd4 {[%clk 0:00:08.9]} 34... Qd8
{[%clk 0:00:16.7]} 35. Qc3 {[%clk 0:00:05.2]} 35... Qc7 {[%clk 0:00:10.3]} 36.
Bxf5 {[%clk 0:00:05.2]} 36... Rxe5 {[%clk 0:00:10.8]} 37. Rxe5 {[%clk
0:00:05.3]} 37... Qxe5 {[%clk 0:00:11.2]} 38. Qf3 {[%clk 0:00:04.4]} 38... Re8
{[%clk 0:00:08]} 39. Bd3 {[%clk 0:00:04.1]} 39... a4 {[%clk 0:00:08.4]} 40. h3
{[%clk 0:00:01.8]} 40... a3 {[%clk 0:00:06.9]} 0-1